bitfinex-derivatives/quotes_BNBF0:USTF0_20250425
["timestamp","ask_amount","ask_price","bid_price","bid_amount"]
[1745541780784,0.2891314,603.02,601.3,0.30522055]
[1745541781383,0.2891314,603.02,601.29,1.099]
[1745541781584,0.2891314,603.02,601.3,0.30522082]
[1745541781784,0.2891314,603.02,601.29,1.099]
[1745541781785,1.26749408,602.99,601.29,1.099]
[1745541783283,0.2891338,602.98,601.29,1.099]
[1745541784979,1.26749408,603.11,601.29,1.099]
[1745541786286,0.28911939,603.1,601.29,1.099]
[1745541787985,1.26749408,603.2,601.29,1.099]
[1745541788184,1.26749408,603.2,601.3,0.3051967]
[1745541788786,1.26749408,603.2,601.29,1.099]
[1745541789282,0.28910858,603.19,601.29,1.099]
[1745541790487,1.26749408,603.13,601.29,1.099]
[1745541791689,1.26749408,603.13,601.3,0.30520752]
[1745541792289,1.26749408,603.13,601.29,1.099]
[1745541792489,1.26749408,603.13,601.3,0.30520726]
[1745541792785,1.26749408,603.13,601.3,1.63520726]
[1745541792989,0.28910858,603.19,601.3,1.63520726]
[1745541792990,1.26749408,603.11,601.31,0.30520726]
[1745541795392,0.28911819,603.1,601.31,0.30520726]
[1745541796293,1.26749408,602.9,601.31,0.30520726]
[1745541797088,1.26749408,602.9,601.32,0.30520904]
[1745541797292,1.26749408,602.9,601.31,0.30520904]
[1745541797493,0.28914341,602.89,601.3,1.33]
[1745541798295,0.28914341,602.89,601.3,2.998]
[1745541799995,1.26749408,603.17,601.3,2.998]
[1745541800295,0.28911098,602.88,601.3,2.998]
[1745541800594,1.26749408,603.17,601.3,2.998]
[1745541801296,0.28911098,603.16,601.3,2.998]
[1745541802999,1.26749408,603.17,601.3,2.998]
[1745541803298,1.26749408,603.09,601.3,2.998]
[1745541804301,0.28912059,603.08,601.3,2.998]
[1745541806000,1.26749408,603.09,601.3,2.998]
[1745541806596,1.26749408,603.08,601.3,2.998]
[1745541807297,0.28912179,603.07,601.3,2.998]
[1745541807499,0.28912179,603.07,601.31,0.30520821]
[1745541809098,1.26749408,602.84,601.31,0.30520821]
[1745541809299,1.26749408,602.84,601.3,2.998]
[1745541811102,0.28912179,603.06,601.3,2.998]
[1745541812003,1.26749408,603.22,601.3,2.998]
[1745541813305,0.28910498,603.21,601.3,2.998]
[1745541813702,1.55659906,603.21,601.3,2.998]
[1745541815007,1.26749408,603.21,601.3,2.998]
[1745541815402,0.28910618,603.2,601.3,2.998]
[1745541818013,1.26749408,603.21,601.3,2.998]
[1745541818212,1.26749408,603.21,601.3,4.411]
[1745541819208,0.28910618,603.2,601.3,4.411]
[1745541819412,0.28910618,603.2,601.31,0.30520907]
[1745541819613,1.26749408,603.15,601.31,0.30520907]
[1745541821612,1.26749408,602.85,601.3,1.413]
[1745541822107,1.26749408,602.85,601.31,0.30520907]
[1745541822311,0.28914942,602.84,601.31,1.466]
[1745541822813,0.28914942,602.84,601.31,2.71]
[1745541824019,1.26749408,602.85,601.31,2.71]
[1745541824319,0.28916263,602.83,601.31,2.71]
[1745541827020,1.26749408,603.19,601.31,2.71]
[1745541827320,0.2891302,602.82,601.31,2.71]
[1745541827515,1.26749408,603.19,601.31,2.71]
[1745541828321,0.28912179,603.18,601.31,2.71]
[1745541829922,1.26749408,603.16,601.31,2.71]
[1745541831323,0.2891254,603.15,601.31,2.71]
[1745541833023,1.26749408,603.19,601.31,2.71]
[1745541834223,0.28912179,603.18,601.31,2.71]
[1745541835526,1.26749408,602.93,601.31,2.71]
[1745541836525,0.28915302,602.92,601.31,2.71]
[1745541837927,1.26749408,602.87,601.31,2.71]
[1745541838125,1.26749408,602.87,601.31,3.9]
[1745541840625,1.26749408,602.89,601.31,3.9]
[1745541842127,1.26749408,602.89,601.32,0.3052405]
[1745541843127,1.26749408,602.9,601.32,0.3052405]
[1745541844331,1.26749408,602.9,601.31,2.656]
[1745541844524,1.26749408,602.9,601.32,0.30524077]
[1745541844927,1.26749408,602.9,601.31,1.19]
[1745541845126,1.26749408,602.9,601.32,0.3052405]
[1745541845329,0.28916383,602.89,601.32,0.3052405]
[1745541845531,1.55665791,602.89,601.32,0.3052405]
[1745541847431,1.55665791,602.89,601.31,2.361]
[1745541847731,1.55665791,602.89,601.32,0.30524339]
[1745541848032,1.26749408,602.89,601.32,0.30524339]
[1745541848231,1.26749408,602.89,601.33,1.492]
[1745541848431,1.26749408,602.89,601.34,0.30524339]
[1745541848732,1.26749408,602.71,601.34,0.30524339]
[1745541851434,1.26749408,602.7,601.34,0.30524339]
[1745541851632,1.26749408,602.7,601.35,1.337]
[1745541851830,1.26749408,602.7,601.36,0.30524339]
[1745541853630,1.26749408,602.7,601.35,1.337]
[1745541854428,1.26749408,602.7,601.36,0.30524327]
[1745541855234,1.26749408,602.7,601.35,1.337]
[1745541855427,1.26749408,602.7,601.36,0.30524044]
[1745541857729,1.26749408,602.72,601.36,0.30524044]
[1745541858134,1.26749408,602.72,601.35,1.337]
[1745541859837,1.26749408,602.72,601.36,1.465]
[1745541860336,1.26749408,602.79,601.36,1.465]
[1745541862837,0.28915422,602.82,601.36,1.465]
[1745541863137,1.26749408,602.84,601.36,1.465]
[1745541864333,0.28914822,602.83,601.36,1.465]
[1745541866034,1.26749408,602.92,601.36,1.465]
[1745541867337,0.28914341,602.91,601.36,1.465]
[1745541868138,0.28914341,602.91,601.37,1.394]
[1745541869038,1.26749408,602.92,601.37,1.394]
[1745541870238,0.28914221,602.91,601.37,1.394]
[1745541872038,1.26749408,602.99,601.37,1.394]
[1745541873136,1.26749408,602.97,601.37,1.394]
[1745541874839,0.28913621,602.96,601.37,1.394]
[1745541875740,0.28913621,602.96,601.38,0.30523652]
[1745541876040,1.26749408,602.88,601.38,0.30523652]
[1745541876239,1.26749408,602.88,601.39,1.344]
[1745541876634,1.26749408,602.88,601.4,1.28]
[1745541878543,0.28914341,602.87,601.4,1.28]
[1745541879143,1.26749408,602.71,601.4,1.28]
[1745541880545,0.28914341,602.87,601.4,1.28]
[1745541880546,1.26749408,602.73,601.4,1.28]
[1745541882742,1.26749408,602.73,601.4,2.843]
[1745541882947,1.26749408,602.88,601.4,2.843]
[1745541883447,0.28914341,602.87,601.4,2.843]
[1745541884046,1.26749408,602.88,601.4,2.843]
[1745541885047,1.26749408,602.91,601.4,2.843]
[1745541885346,0.28914341,602.87,601.4,2.843]
[1745541887047,1.26749408,602.91,601.4,2.843]
[1745541887443,1.26749408,602.96,601.4,2.843]
[1745541888347,0.2891338,602.95,601.4,2.843]
[1745541889248,0.2891338,602.95,601.4,3.91]
[1745541890348,1.26749408,602.92,601.4,3.91]
[1745541892551,0.2891338,602.95,601.4,3.91]
[1745541892552,1.26749408,602.72,601.4,3.91]
[1745541895051,1.26749408,602.76,601.4,3.91]
[1745541897453,1.26749408,602.67,601.4,3.91]
[1745541900555,1.26749408,602.72,601.4,3.91]
[1745541902957,0.28917825,602.76,601.4,3.91]
[1745541905052,1.26749408,603.42,601.4,3.91]
[1745541905357,0.28910258,602.75,601.4,3.91]
[1745541905657,1.26749408,603.42,601.4,3.91]
[1745541906357,0.28910258,603.41,601.4,3.91]
[1745541906654,1.26749408,603.4,601.4,3.91]
[1745541908759,0.28910498,603.39,601.4,3.91]
[1745541909854,0.28910498,603.39,601.4,2.63]
[1745541911061,1.26749408,603.41,601.4,1.067]
[1745541911662,0.28910378,603.4,601.4,1.067]
[1745541914066,1.26749408,603.42,601.4,1.067]
[1745541914260,0.28910258,603.39,601.4,1.067]
[1745541915761,1.26749408,602.79,601.4,1.067]
[1745541916164,1.26749408,602.79,600.91,1.0564898]
[1745541916464,1.26749408,602.79,600.92,0.30529125]
[1745541917671,1.26749408,602.79,600.91,1.0564898]
[1745541917869,1.26749408,602.79,600.92,0.30529386]
[1745541918371,0.28923714,602.78,600.92,0.30529386]
[1745541918873,0.28923714,602.78,600.95,1.0564898]
[1745541918874,1.26749408,602.67,600.95,1.0564898]
[1745541919067,1.26749408,602.67,600.96,0.30529386]
[1745541920774,1.26749408,602.64,600.98,1.0564898]
[1745541920973,1.26749408,602.64,600.99,0.30529386]
[1745541923973,1.26749408,602.68,601.04,1.0564898]
[1745541924172,1.26749408,602.68,601.05,0.30530476]
[1745541926976,1.26749408,602.59,601.08,1.0564898]
[1745541927175,1.26749408,602.59,601.09,0.30530476]
[1745541929679,0.28925517,602.64,601.09,0.30530476]
[1745541929878,0.28925517,602.64,601.06,0.30530476]
[1745541930574,0.28925517,602.64,601.05,1.0564898]
[1745541930779,0.28925517,602.64,601.06,0.30529747]
[1745541932275,1.26749408,602.73,601.05,1.0564898]
[1745541932479,0.28924195,602.65,601.06,0.30529744]
[1745541932676,1.26749408,602.73,601.06,0.30529744]
[1745541934680,0.28924195,602.72,601.06,0.30529744]
[1745541935177,1.26749408,602.77,601.05,0.30529744]
[1745541936583,0.28923834,602.76,601.05,0.30529744]
[1745541937280,0.28923834,602.76,601.06,0.30529896]
[1745541937484,0.28923834,602.76,601.07,0.30529896]
[1745541937681,0.28923834,602.76,601.05,0.30529896]
[1745541937884,0.28923834,602.76,601.06,0.30529896]
[1745541938081,1.26749408,602.73,601.07,0.30529896]
[1745541938786,1.26749408,602.73,601.06,1.0564898]
[1745541938980,1.26749408,602.73,601.07,0.30530748]
[1745541939287,0.28924074,602.72,601.07,0.30530748]
[1745541940391,0.28924074,602.72,601.06,1.0564898]
[1745541940593,0.28924074,602.72,600.92,1.0564898]
[1745541940787,0.28924074,602.72,600.93,0.3053091]
[1745541941091,1.26749408,602.97,600.93,0.3053091]
[1745541942198,1.26749408,602.97,600.92,1.0564898]
[1745541942498,0.28924796,602.96,600.92,1.0564898]
[1745541942998,1.55674204,602.96,600.92,1.0564898]
[1745541944499,1.55674204,602.96,600.93,0.30534148]
[1745541944795,1.55674204,602.96,600.92,1.0564898]
[1745541945095,1.55674204,602.96,600.87,1.0564898]
[1745541945096,1.26749408,602.78,600.87,1.0564898]
[1745541947302,0.28930326,602.77,600.87,1.0564898]
[1745541950103,1.26749408,602.78,600.87,1.0564898]
[1745541951307,0.28930807,602.77,600.87,1.0564898]
[1745541952602,0.28930807,602.77,600.82,1.732]
[1745541956108,1.26749408,603.26,600.82,1.732]
[1745541957308,0.28926118,603.25,600.82,1.732]
[1745541957709,0.28926118,603.25,600.83,0.30542681]
[1745541958205,1.26749408,603.11,600.83,0.30542681]
[1745541958710,1.26749408,603.11,600.82,1.732]
[1745541958902,1.26749408,603.11,600.83,0.30542968]
[1745541959509,0.28927921,603.1,600.83,0.30542968]
[1745541960109,0.28927921,603.1,600.62,0.30542968]
[1745541960304,0.28927921,603.1,600.63,0.30542968]
[1745541960509,0.28927921,603.1,600.64,0.30542968]
[1745541960510,1.26749408,602.87,600.64,0.30542968]
[1745541960708,1.26749408,602.87,600.62,0.30542968]
[1745541960906,1.26749408,602.87,600.63,0.30542968]
[1745541961107,1.26749408,602.87,600.62,0.30542968]
[1745541961403,1.26749408,602.87,600.63,0.30542968]
[1745541961708,1.26749408,602.87,600.64,0.30542968]
[1745541961910,1.26749408,602.87,600.62,0.30542968]
[1745541962206,1.26749408,602.76,600.62,0.30542968]
[1745541963108,1.26749408,602.76,600.63,0.30543479]
[1745541963303,1.26749408,602.76,600.62,0.30543479]
[1745541963509,0.28935137,602.75,600.63,0.30543479]
[1745541963706,0.28935137,602.75,600.63,1.162]
[1745541963904,0.28935137,602.75,600.64,0.30543479]
[1745541965211,1.26749408,602.76,600.65,1.033]
[1745541965511,0.28934896,602.74,600.66,0.30543479]
[1745541969514,0.28934896,602.74,600.65,1.033]
[1745541969714,0.28934896,602.74,600.66,0.30546138]
[1745541971718,0.28934896,602.74,600.66,1.56246138]
[1745541972012,0.28934896,602.74,600.67,0.30546138]
[1745541973812,1.26749408,602.7,600.67,0.30546138]
[1745541974318,0.28937904,602.69,600.66,1.257]
[1745541974514,0.28937904,602.69,600.67,0.30548367]
[1745541976620,1.26749408,602.68,600.67,0.30548367]
[1745541978321,0.28940311,602.67,600.67,0.30548367]
[1745541979122,0.28940311,602.67,600.66,1.257]
[1745541979318,0.28940311,602.67,600.67,0.30552357]
[1745541980023,1.26749408,602.4,600.67,0.30552357]
[1745541981323,0.2894368,602.39,600.67,0.30552357]
[1745541982323,0.2894368,602.39,600.66,1.257]
[1745541982525,0.2894368,602.39,600.67,0.30553941]
[1745541983124,1.26749408,602.47,600.67,0.30553941]
[1745541983519,1.26749408,602.47,600.67,1.59853941]
[1745541983718,1.26749408,602.47,600.68,0.30553941]
[1745541983922,1.26749408,602.47,600.67,1.293]
[1745541984118,1.26749408,602.47,600.68,0.30553929]
[1745541984417,0.28942718,602.46,600.68,0.30553929]
[1745541984926,1.26749408,602.51,600.68,0.30553929]
[1745541985122,0.28942236,602.45,600.68,0.30553929]
[1745541986123,1.26749408,602.51,600.68,0.30553929]
[1745541987123,1.26749408,602.51,600.69,0.30553956]
[1745541987319,1.26749408,602.51,600.7,0.30553956]
[1745541987623,0.28942236,602.5,600.67,1.293]
[1745541987826,0.28942236,602.5,600.68,0.30554113]
[1745541988627,0.28942236,602.5,600.68,1.61354113]
[1745541988827,0.28942236,602.5,600.68,1.308]
[1745541989127,1.26749408,602.51,600.68,1.308]
[1745541989328,2.15313798,603.14,600.68,1.308]
[1745541989329,0.28942116,602.49,600.68,1.308]
[1745541992131,1.26749408,602.58,600.68,1.308]
[1745541992324,0.28941273,602.48,600.68,1.308]
[1745541992631,1.26749408,602.58,600.68,1.308]
[1745541993126,1.26749408,602.8,600.68,1.308]
[1745541993426,0.28941273,602.57,600.68,1.308]
[1745541993630,1.26749408,602.8,600.68,1.308]
[1745541993930,0.28938626,602.56,600.68,1.308]
[1745541994131,1.26749408,602.8,600.68,1.308]
[1745541994430,0.28938626,602.55,600.68,1.308]
[1745541994630,1.26749408,602.8,600.68,1.308]
[1745541994930,0.28938626,602.54,600.68,1.308]
[1745541995431,1.26749408,602.8,600.68,1.308]
[1745541996327,0.28938626,602.79,600.68,1.308]
[1745541996731,1.26749408,602.78,600.68,1.308]
[1745541999235,1.26749408,602.65,600.68,1.308]
[1745542001036,1.26749408,602.65,600.69,0.30554318]
[1745542001331,1.26749408,602.65,600.68,1.308]
[1745542001533,1.26749408,602.65,600.69,0.30554349]
[1745542001738,1.26749408,602.61,600.69,0.30554349]
[1745542002338,0.28940912,602.6,600.69,0.30554349]
[1745542002836,0.28940912,602.6,600.68,1.308]
[1745542004138,1.26749408,602.61,600.68,1.308]
[1745542004336,0.28940912,602.59,600.68,1.308]
[1745542005036,1.26749408,602.4,600.68,1.308]
[1745542005235,1.26749408,602.4,600.68,2.646]
[1745542006333,1.26749408,602.4,600.68,3.997]
[1745542007036,1.26749408,602.52,600.68,3.997]
[1745542007432,0.2894344,602.39,600.68,3.997]
[1745542007634,1.26749408,602.52,600.68,3.997]
[1745542008438,0.28938385,602.51,600.68,3.997]
[1745542010138,1.26749408,602.96,600.68,3.997]
[1745542010934,1.26749408,602.96,600.69,0.30544234]
[1745542011441,0.28930206,602.95,600.69,0.30544234]
[1745542012042,1.26749408,602.94,600.69,0.30544234]
[1745542012441,1.26749408,602.94,600.7,0.30540756]
[1745542012742,1.26749408,602.94,600.71,0.30540756]
[1745542013544,0.28930206,602.93,600.71,0.30540756]
[1745542013942,0.28930206,602.93,600.7,1.403]
[1745542014139,0.28930206,602.93,600.71,0.30541281]
[1745542014641,0.28930206,602.93,600.72,1.224]
[1745542014843,0.28930206,602.93,600.73,0.30541281]
[1745542015542,0.28930206,602.93,600.72,1.224]
[1745542015743,0.28930206,602.93,600.73,0.30541514]
[1745542016143,1.26749408,602.94,600.73,0.30541514]
[1745542016345,0.28929965,602.92,600.73,0.30541514]
[1745542017947,1.26749408,602.89,600.73,0.30541514]
[1745542020345,1.26749408,602.89,600.72,1.224]
[1745542020546,0.28930567,602.88,600.73,0.30541629]
[1745542022143,1.26749408,603.0,600.73,0.30541629]
[1745542022539,1.26749408,603.0,600.74,1.297]
[1745542022742,1.26749408,603.0,600.75,0.30541629]
[1745542023348,0.28929003,602.99,600.75,0.30541629]
[1745542024043,1.26749408,602.87,600.75,0.30541629]
[1745542025342,0.28930567,602.86,600.75,0.30541629]
[1745542026347,1.26749408,602.72,600.74,1.297]
[1745542026547,1.26749408,602.72,600.75,0.30537527]
[1745542028247,1.26749408,602.72,600.76,1.411]
[1745542028453,1.26749408,602.72,600.77,0.30537527]
[1745542029150,0.28930567,602.86,600.77,0.30537527]
[1745542030654,0.28930567,602.86,600.77,1.46737527]
[1745542030853,0.28930567,602.86,600.78,0.30537527]
[1745542031155,1.26749408,603.14,600.78,0.30537527]
[1745542031655,1.26749408,603.17,600.78,0.30537527]
[1745542032455,0.28925156,603.16,600.78,0.30537527]
[1745542032757,0.28925156,603.16,600.77,1.162]
[1745542032949,0.28925156,603.16,600.78,0.30535596]
[1745542033756,1.26749408,602.97,600.78,0.30535596]
[1745542035357,0.2892708,602.96,600.78,0.30535596]
[1745542036355,1.26749408,602.9,600.78,0.30535596]
[1745542038364,1.26749408,602.87,600.78,0.30535596]
[1745542038763,1.26749408,602.87,600.78,1.70635596]
[1745542039063,1.26749408,602.87,600.79,0.30535596]
[1745542041360,0.28926959,602.86,600.79,0.30535596]
[1745542043269,1.26749408,603.13,600.79,0.30535596]
[1745542044171,1.26749408,603.13,600.78,1.401]
[1745542044370,0.28923834,603.12,600.79,0.30532723]
[1745542046267,1.26749408,603.14,600.79,0.30532723]
[1745542047073,1.26749408,603.1,600.79,0.30532723]
[1745542047474,1.26749408,603.1,600.8,0.30532777]
[1745542047667,1.26749408,603.1,600.79,0.30532777]
[1745542048173,1.26749408,603.1,600.79,1.55532777]
[1745542048373,1.26749408,603.1,600.8,0.30532777]
[1745542048972,1.26749408,603.1,600.8,1.78532777]
[1745542049169,1.26749408,603.1,600.81,0.30532777]
[1745542049376,0.28923233,603.09,600.81,0.30532777]
[1745542050666,0.28923233,603.09,600.82,0.30532867]
[1745542050871,0.28923233,603.09,600.83,0.30532867]
[1745542051072,0.28923233,603.09,600.81,0.30532867]
[1745542051272,0.28923233,603.09,600.82,0.30532867]
[1745542051569,0.28923233,603.09,600.83,0.30532867]
[1745542051772,0.28923233,603.09,600.81,0.30532867]
[1745542051974,0.28923233,603.09,600.8,1.48]
[1745542051975,1.26749408,602.87,600.89,1.0564898]
[1745542052369,1.26749408,602.87,600.9,0.30532862]
[1745542053374,0.28924916,602.86,600.9,0.30532862]
[1745542055174,1.26749408,602.87,600.9,0.30532862]
[1745542055571,1.26749408,602.66,600.9,0.30532862]
[1745542055774,1.26749408,602.66,600.88,0.30532862]
[1745542056370,1.55677089,602.66,600.88,0.30532862]
[1745542057074,1.55677089,602.66,600.89,1.143]
[1745542057276,1.55677089,602.66,600.9,0.30532862]
[1745542057875,1.26749408,602.62,600.99,1.0564898]
[1745542058076,1.26749408,602.62,601.0,0.30532862]
[1745542058477,1.26749408,602.62,600.99,1.0564898]
[1745542058678,1.26749408,602.62,601.0,0.3053438]
[1745542061080,0.2892744,602.63,601.0,0.3053438]
[1745542061378,1.26749408,602.67,601.01,0.3053438]
[1745542061674,1.26749408,602.67,601.02,0.3053438]
[1745542061877,1.26749408,602.67,600.92,0.3053438]
[1745542062478,0.28927801,602.66,600.92,0.3053438]
[1745542063181,0.28927801,602.66,600.91,1.0564898]
[1745542063382,0.28927801,602.66,600.97,1.0564898]
[1745542063582,0.28927801,602.66,600.98,0.30532792]
[1745542064784,0.28927801,602.66,600.97,1.0564898]
[1745542065085,0.28927801,602.66,600.98,0.30533135]
[1745542066285,1.55677209,602.66,601.0,1.0564898]
[1745542066784,1.55677209,602.66,601.01,0.30531382]
[1745542067181,1.26749408,602.66,601.01,0.30531382]
[1745542068085,1.26749408,602.66,601.0,1.0564898]
[1745542068279,1.26749408,602.66,601.01,0.30531052]
[1745542068589,0.28925877,602.67,601.01,0.30531052]
[1745542070087,1.26749408,602.77,601.01,0.30531052]
[1745542070886,2.15313798,603.39,601.01,0.30531052]
[1745542070887,1.26749408,602.72,601.03,1.0564898]
[1745542071186,1.26749408,602.72,601.04,0.30531052]
[1745542071387,0.28924555,602.71,601.04,0.30531052]
[1745542072787,0.28924555,602.71,601.03,1.0564898]
[1745542072988,0.28924555,602.71,601.04,0.30531019]
[1745542073189,1.26749408,602.72,601.04,0.30531019]
[1745542073488,0.28924315,602.7,601.04,0.30531019]
[1745542073688,0.28924315,602.7,601.04,1.36179999]
[1745542073885,0.28924315,602.7,601.05,0.30531019]
[1745542074391,0.28924315,602.7,601.04,1.0564898]
[1745542074686,0.28924315,602.7,601.05,0.30530366]
[1745542075989,0.28924315,602.7,601.04,2.7034898]
[1745542076190,1.26749408,602.72,601.05,0.30529522]
[1745542077590,1.26749408,602.72,601.04,2.7034898]
[1745542077886,1.26749408,602.72,601.05,0.30529689]
[1745542079592,1.26749408,602.72,601.05,1.35129689]
[1745542079786,1.26749408,602.72,601.06,0.30529689]
[1745542080690,1.26749408,602.72,601.05,1.046]
[1745542080991,1.26749408,602.72,601.06,0.30526843]
[1745542081792,1.26749408,602.72,601.05,1.046]
[1745542081985,1.26749408,602.72,601.06,0.3052617]
[1745542084398,0.28922151,602.78,601.12,1.0564898]
[1745542084697,0.28922151,602.78,601.13,0.3052617]
[1745542084994,0.28922151,602.78,601.12,1.0564898]
[1745542085195,0.28922151,602.78,601.13,0.30527163]
[1745542086599,0.28922151,602.78,601.12,1.0564898]
[1745542086897,0.28922151,602.78,601.13,0.30527068]
[1745542087091,0.28922151,602.78,601.1,0.30527068]
[1745542087292,0.28922151,602.78,601.11,0.30527068]
[1745542087492,0.28922151,602.78,601.1,0.30527068]
[1745542088299,1.26749408,602.8,601.11,0.30527041]
[1745542088493,1.26749408,602.8,601.09,1.0564898]
[1745542088494,0.28920829,602.77,601.12,0.30527041]
[1745542088698,0.28920829,602.77,601.1,0.30527041]
[1745542088896,0.28920829,602.77,601.11,0.30527041]
[1745542089100,0.28920829,602.77,601.1,0.30527041]
[1745542089301,0.28920829,602.77,601.11,0.30527041]
[1745542089503,0.28920829,602.77,601.1,0.30527041]
[1745542089803,1.26749408,602.66,601.1,0.30527041]
[1745542090000,1.26749408,602.66,601.06,0.30527041]
[1745542090303,1.26749408,602.66,601.07,0.30527041]
[1745542090602,1.26749408,602.66,601.08,0.30527041]
[1745542090798,1.26749408,602.66,601.09,0.30527041]
[1745542091103,1.26749408,602.66,601.1,0.30527041]
[1745542091303,1.26749408,602.66,601.06,0.30527041]
[1745542092102,0.28922632,602.78,601.06,0.30527041]
[1745542092304,0.28922632,602.78,601.07,0.30527041]
[1745542092504,0.28922632,602.78,600.96,0.30527041]
[1745542092702,0.28922632,602.78,600.97,0.30527041]
[1745542093003,0.28922632,602.78,600.95,1.0564898]
[1745542093199,0.28922632,602.78,600.96,0.3052609]
[1745542094205,1.26749408,602.91,600.96,0.3052609]
[1745542094406,0.28920829,602.78,600.96,0.3052609]
[1745542094704,1.26749408,602.91,600.96,0.3052609]
[1745542095405,0.28920829,602.9,600.96,0.3052609]
[1745542096005,0.28920829,602.9,600.97,0.3052609]
[1745542096205,0.28920829,602.9,600.95,0.3052609]
[1745542097109,1.26749408,602.92,600.95,0.3052609]
[1745542097405,0.28920829,602.89,600.95,0.3052609]
[1745542098908,0.28920829,602.89,601.0,1.0564898]
[1745542099211,0.28920829,602.89,601.01,0.3052609]
[1745542100211,1.26749408,602.98,601.01,0.3052609]
[1745542101414,0.28919387,602.97,601.01,0.3052609]
[1745542102214,0.28919387,602.97,600.96,0.3052609]
[1745542102517,0.28919387,602.97,600.95,1.0564898]
[1745542102717,0.28919387,602.97,600.96,0.30525383]
[1745542103310,1.26749408,603.07,600.96,0.30525383]
[1745542103511,0.28918907,602.96,600.96,0.30525383]
[1745542103814,1.26749408,603.07,600.96,0.30525383]
[1745542104114,1.26749408,603.09,600.96,0.30525383]
[1745542104511,0.28918907,603.06,600.96,0.30525383]
[1745542106216,1.26749408,603.09,600.96,0.30525383]
[1745542107013,1.26749408,603.07,600.97,1.0564898]
[1745542107217,1.26749408,603.07,600.98,0.30525383]
[1745542107417,0.28919147,603.06,600.98,0.30525383]
[1745542108924,0.28919147,603.06,600.97,1.0564898]
[1745542109116,0.28919147,603.06,600.98,0.30525933]
[1745542109322,2.15313798,603.44,600.98,0.30525933]
[1745542109323,1.26749408,603.03,600.98,0.30525933]
[1745542110423,0.28919628,603.02,600.98,0.30525933]
[1745542112122,1.26749408,603.03,600.98,0.30525933]
[1745542112321,1.26749408,602.89,601.05,1.0564898]
[1745542112520,1.26749408,602.89,601.06,0.30525933]
[1745542113424,0.2892155,602.88,601.06,0.30525933]
[1745542113819,0.2892155,602.88,601.07,0.30525839]
[1745542114125,0.2892155,602.88,601.08,0.30525839]
[1745542114425,0.2892155,602.88,601.09,0.30525839]
[1745542114727,1.26749408,602.71,601.16,1.0564898]
[1745542114925,1.26749408,602.71,601.17,0.30525839]
[1745542115526,1.556718,602.71,601.18,0.3052658]
[1745542115826,1.556718,602.71,601.19,0.3052658]
[1745542116026,1.556718,602.71,601.17,0.3052658]
[1745542116225,1.556718,602.71,601.18,0.3052658]
[1745542116526,1.556718,602.71,601.19,0.3052658]
[1745542116726,1.556718,602.71,601.2,0.3052658]
[1745542116928,1.556718,602.71,601.16,1.0564898]
[1745542117226,1.556718,602.71,601.17,0.30525964]
[1745542117426,0.28922392,602.71,601.17,0.30525964]
[1745542117626,0.28922392,602.71,601.09,0.30525964]
[1745542118521,0.28922392,602.71,601.08,1.0564898]
[1745542118726,0.28922392,602.71,601.09,0.30525866]
[1745542119626,0.28922392,602.71,601.01,0.30525866]
[1745542119824,0.28922392,602.71,601.02,0.30525866]
[1745542120023,0.28922392,602.71,601.03,0.30525866]
[1745542120222,0.28922392,602.71,601.04,0.30525866]
[1745542120521,0.28922392,602.71,601.05,0.30525866]
[1745542120721,0.28922392,602.71,601.01,0.30525866]
[1745542120922,0.28922392,602.71,601.02,0.30525866]
[1745542121124,0.28922392,602.71,601.01,0.30525866]
[1745542121325,1.26749408,602.89,601.02,0.30525866]
[1745542121629,0.28922151,602.71,601.03,0.30525866]
[1745542121829,1.26749408,602.89,601.04,0.30525511]
[1745542122029,1.26749408,602.89,601.05,0.30525511]
[1745542122230,1.26749408,602.89,601.06,0.30525511]
[1745542122422,0.28922151,602.88,601.01,0.30525511]
[1745542122829,0.28922151,602.88,600.99,0.30525511]
[1745542123024,0.28922151,602.88,601.0,0.30525511]
[1745542123225,0.28922151,602.88,600.99,0.30525511]
[1745542124126,1.26749408,602.94,600.99,0.30525511]
[1745542124532,0.28920349,602.87,600.99,0.30525511]
[1745542126834,0.28920349,602.87,601.07,1.0564898]
[1745542127032,0.28920349,602.87,601.08,0.30525511]
[1745542127333,1.26749408,603.03,601.08,0.30525511]
[1745542127531,0.28918426,602.86,601.08,0.30525511]
[1745542127733,1.26749408,603.03,601.08,0.30525511]
[1745542128429,0.28918426,603.02,601.08,0.30525511]
[1745542129836,0.28918426,603.02,601.1,1.0564898]
[1745542129837,1.26749408,602.95,601.1,1.0564898]
[1745542130030,1.26749408,602.95,601.11,0.30525511]
[1745542131436,0.28919027,602.94,601.11,0.30525511]
[1745542132237,1.26749408,602.86,601.13,1.0564898]